fUSD/lending_fUSD_20240107
["ID","MTS","AMOUNT","RATE_DAILY","PERIOD"]
[310657754,1704637873138,-500.0,0.00022898,2]
[310657755,1704637873149,-500.0,0.00022898,2]
[310657756,1704637873158,-500.0,0.00022898,2]
[310657757,1704637873169,-500.0,0.00022898,2]
[310657758,1704637873180,-500.0,0.00022898,2]
[310657759,1704637873190,-500.0,0.00022898,2]
[310657760,1704637873200,-500.0,0.00022898,2]
[310657761,1704637873211,-500.0,0.00022898,2]
[310657762,1704637873222,-500.0,0.00022898,2]
[310657763,1704637873233,-500.0,0.00022898,2]
[310657764,1704637873243,-500.0,0.00022898,2]
[310657765,1704637873254,-500.0,0.00022898,2]
[310657766,1704637873265,-500.0,0.00022898,2]
[310657767,1704637873275,-500.0,0.00022898,2]
[310657768,1704637873285,-500.0,0.00022898,2]
[310657769,1704637873296,-500.0,0.00022898,2]
[310657770,1704637873311,-500.0,0.00022898,2]
[310657771,1704637873319,-500.0,0.00022898,2]
[310657772,1704637873329,-500.0,0.00022898,2]
[310657773,1704637873338,-500.0,0.00022898,2]
[310657774,1704637873350,-500.0,0.00022898,2]
[310657775,1704637873360,-500.0,0.00022898,2]
[310657776,1704637873369,-500.0,0.00022898,2]
[310657777,1704637873379,-500.0,0.00022898,2]
[310657778,1704637873390,-500.0,0.00022898,2]
[310657779,1704637873400,-500.0,0.00022898,2]
[310657780,1704637873410,-500.0,0.00022898,2]
[310657781,1704637873419,-500.0,0.00022898,2]
[310657782,1704637873429,-500.0,0.00022898,2]
[310657783,1704637873438,-500.0,0.00022898,2]
[310657784,1704637873449,-500.0,0.00022898,2]
[310657785,1704637873458,-500.0,0.00022898,2]
[310657786,1704637873469,-500.0,0.00022898,2]
[310657787,1704637873480,-500.0,0.00022898,2]
[310657788,1704637873491,-500.0,0.00022898,2]
[310657789,1704637873502,-510.69139123,0.00022898,2]
[310657790,1704637873513,-500.0,0.00022898,2]
[310657791,1704637873522,-500.0,0.00022898,2]
[310657792,1704637873532,-500.0,0.00022898,2]
[310657793,1704637873541,-500.0,0.00022898,2]
[310657794,1704637873551,-512.04818419,0.00022898,2]
[310657795,1704637873561,-500.0,0.00022898,2]
[310657796,1704637873572,-500.0,0.00022898,2]
[310657797,1704637873582,-500.0,0.00022898,2]
[310657798,1704637873594,-500.0,0.00022898,2]
[310657799,1704637873604,-500.0,0.00022898,2]
[310657800,1704637873614,-509.73823027,0.00022898,2]
[310657801,1704637873626,-500.0,0.00022898,2]
[310657802,1704637873638,-500.0,0.00022898,2]
[310657803,1704637873648,-500.0,0.00022898,2]
[310657804,1704637873658,-500.0,0.00022898,2]
[310657805,1704637873667,-500.0,0.00022898,2]
[310657806,1704637873676,-500.0,0.00022898,2]
[310657807,1704637873687,-500.0,0.00022898,2]
[310657808,1704637873697,-1000.0,0.00022898,2]
[310657809,1704637873707,-500.0,0.00022898,2]
[310657810,1704637873716,-500.0,0.00022898,2]
[310657811,1704637873726,-500.0,0.00022898,2]
[310657812,1704637873735,-500.0,0.00022898,2]
[310657813,1704637873745,-500.0,0.00022898,2]
[310657814,1704637873755,-500.0,0.00022898,2]
[310657815,1704637873765,-500.0,0.00022898,2]
[310657816,1704637873775,-500.0,0.00022898,2]
[310657817,1704637873784,-500.0,0.00022898,2]
[310657818,1704637873794,-561.82630955,0.00022898,2]
[310657819,1704637873804,-500.0,0.00022898,2]
[310657820,1704637873814,-300.0,0.00022898,2]
[310657821,1704637873824,-500.0,0.00022898,2]
[310657822,1704637873833,-500.0,0.00022899,2]
[310657823,1704637873843,-500.0,0.00022899,2]
[310657824,1704637873852,-500.0,0.00022899,2]
[310657825,1704637873862,-500.0,0.00022899,2]
[310657826,1704637873871,-500.0,0.00022899,2]
[310657827,1704637873881,-500.0,0.00022899,2]
[310657828,1704637873890,-407.15,0.00022899,2]
[310657829,1704637873900,-327.77,0.00022899,2]
[310657830,1704637873909,-500.0,0.00022899,2]
[310657831,1704637873919,-482.22291977,0.00022899,2]
[310657832,1704637873929,-500.0,0.00022899,2]
[310657833,1704637873938,-500.0,0.00022899,2]
[310657834,1704637873948,-326.79,0.00022899,2]
[310657835,1704637873957,-500.0,0.00022899,2]
[310657836,1704637873967,-417.41,0.00022899,2]
[310657837,1704637873976,-203.97301115,0.00022899,2]
[310657838,1704637873986,-558.64,0.00022899,2]
[310657839,1704637873996,-500.0,0.00022899,2]
[310657840,1704637874005,-370.18,0.00022899,2]
[310657841,1704637874015,-500.0,0.00022899,2]
[310657842,1704637874024,-500.0,0.00022899,2]
[310657843,1704637874034,-500.0,0.00022899,2]
[310657844,1704637874044,-500.0,0.00022899,2]
[310657845,1704637874054,-605.04,0.00022899,2]
[310657846,1704637874064,-500.0,0.000229,2]
[310657847,1704637874074,-500.0,0.00022992,2]
[310657848,1704637874084,-613.75,0.00022992,2]
[310657849,1704637874094,-500.0,0.00022992,2]
[310657850,1704637874104,-3039.55,0.00022992,2]
[310657851,1704637874114,-500.0,0.00022992,2]
[310657852,1704637874125,-500.0,0.00022992,2]
[310657853,1704637874135,-517.06,0.00022992,2]
[310657854,1704637874146,-500.0,0.00022992,2]
[310657855,1704637874157,-500.0,0.00022992,2]
[310657856,1704637874166,-409.77470649,0.00022992,2]
[310657857,1704637874176,-631.52,0.00022992,2]
[310657858,1704637874186,-2391.46,0.00022992,2]
[310657859,1704637874198,-544.16,0.00022992,2]
[310657860,1704637874207,-500.0,0.00022992,2]
[310657861,1704637874219,-1144.28,0.00022992,2]
[310657862,1704637874229,-603.59,0.00022992,2]
[310657863,1704637874238,-500.0,0.00022992,2]
[310657864,1704637874247,-1381.06,0.00022993,2]
[310657865,1704637874257,-2115.91,0.00022993,2]
[310657866,1704637874267,-372.19334272,0.00022993,2]
[310657867,1704637874277,-223.22165722,0.00022993,2]
[310657868,1704637874287,-500.0,0.00022993,2]
[310657869,1704637874297,-249.12,0.00022993,2]
[310657870,1704637874307,-619.06,0.00022993,2]
[310657871,1704637874318,-1652.68,0.00022993,2]
[310657872,1704637874327,-917.97,0.00022993,2]
[310657873,1704637874340,-391.18239809,0.00022993,2]
[310657874,1704637874350,-500.0,0.00022993,2]
[310657875,1704637874360,-500.0,0.00022993,2]
[310657876,1704637874370,-500.0,0.00022993,2]
[310657877,1704637874380,-500.0,0.00022993,2]
[310657878,1704637874391,-500.0,0.00022993,2]
[310657879,1704637874401,-500.0,0.00022993,2]
[310657880,1704637874412,-500.0,0.00022993,2]
[310657881,1704637874423,-500.0,0.00022993,2]
[310657882,1704637874435,-500.0,0.00022993,2]
[310657883,1704637874445,-500.0,0.00022993,2]
[310657884,1704637874455,-500.0,0.00022993,2]
[310657885,1704637874465,-500.0,0.00022993,2]
[310657886,1704637874476,-500.0,0.00022993,2]
[310657887,1704637874486,-500.0,0.00022993,2]
[310657888,1704637874496,-500.0,0.00022993,2]
[310657889,1704637874507,-500.0,0.00022993,2]
[310657890,1704637874518,-500.0,0.00022993,2]
[310657891,1704637874528,-500.0,0.00022993,2]
[310657892,1704637874538,-500.0,0.00022993,2]
[310657893,1704637874548,-500.0,0.00022993,2]
[310657894,1704637874558,-500.0,0.00022993,2]
[310657895,1704637874567,-500.0,0.00022993,2]
[310657896,1704637874577,-607.17,0.00022993,2]
[310657897,1704637874587,-500.0,0.00022993,2]
[310657898,1704637874597,-500.0,0.00022993,2]
[310657899,1704637874606,-500.0,0.00022993,2]
[310657900,1704637874620,-573.18588085,0.00022993,2]
[310657901,1704637874630,-500.0,0.00022993,2]
[310657902,1704637874640,-1058.56,0.00022993,2]
[310657903,1704637874650,-500.0,0.00022993,2]
[310657904,1704637874662,-500.0,0.00022993,2]
[310657905,1704637874671,-500.0,0.00022993,2]
[310657906,1704637874682,-667.45,0.00022993,2]
[310657907,1704637874692,-543.32,0.00022993,2]
[310657908,1704637874702,-500.0,0.00022993,2]
[310657909,1704637874712,-500.0,0.00022993,2]
[310657910,1704637874722,-500.0,0.00022993,2]
[310657911,1704637874731,-500.0,0.00022993,2]
[310657912,1704637874742,-627.29,0.00022993,2]
[310657913,1704637874752,-500.0,0.00022993,2]
[310657914,1704637874763,-597.89,0.00022993,2]
[310657915,1704637874772,-500.0,0.00022993,2]
[310657916,1704637874782,-526.43,0.00022993,2]
[310657917,1704637874792,-500.0,0.00022993,2]
[310657918,1704637874804,-500.0,0.00022993,2]
[310657919,1704637874814,-500.0,0.00022993,2]
[310657920,1704637874824,-500.0,0.00022993,2]
[310657921,1704637874834,-500.0,0.00022993,2]
[310657922,1704637874843,-500.0,0.00022993,2]
[310657923,1704637874853,-514.11,0.00022993,2]
[310657924,1704637874865,-500.0,0.00022993,2]
[310657925,1704637874874,-500.0,0.00022993,2]
[310657926,1704637874884,-500.0,0.00022993,2]
[310657927,1704637874893,-256.05479775,0.00022993,2]
[310657928,1704637874902,-500.0,0.00022993,2]
[310657929,1704637874912,-931.43,0.00022993,2]
[310657930,1704637874921,-500.0,0.00022993,2]
[310657931,1704637874930,-500.0,0.00022993,2]
[310657932,1704637874940,-185.5,0.00022993,2]
[310657933,1704637874949,-500.0,0.00022993,2]
[310657934,1704637874959,-500.0,0.00022993,2]
[310657935,1704637874969,-500.0,0.00022993,2]
[310657936,1704637874980,-500.0,0.00022993,2]
[310657937,1704637874989,-500.0,0.00022993,2]
[310657938,1704637874999,-500.0,0.00022993,2]
[310657939,1704637875009,-500.0,0.00022993,2]
[310657940,1704637875019,-500.0,0.00022993,2]
[310657941,1704637875029,-500.0,0.00022993,2]
[310657942,1704637875038,-500.0,0.00022993,2]
[310657943,1704637875047,-504.77,0.00022993,2]
[310657944,1704637875056,-500.0,0.00022993,2]
[310657945,1704637875066,-500.0,0.00022993,2]
[310657946,1704637875075,-629.76,0.00022993,2]
[310657947,1704637875085,-500.0,0.00022993,2]
[310657948,1704637875095,-525.86,0.00022993,2]
[310657949,1704637875105,-500.0,0.00022993,2]
[310657950,1704637875115,-500.0,0.00022993,2]
[310657951,1704637875125,-500.0,0.00022993,2]
[310657952,1704637875134,-158.41091363,0.00022994,2]
[310657953,1704637875144,-379.04890278,0.00022994,2]
[310657954,1704637875153,-156.03562825,0.00022994,2]
[310657955,1704637875162,-155.0,0.00022994,2]
[310657956,1704637875172,-214.52914029,0.00022994,2]
[310657957,1704637875181,-252.23869713,0.00022994,2]
[310657958,1704637875190,-156.02860918,0.00022995,2]
[310657959,1704637875199,-464.18,0.00022997,2]
[310657960,1704637875209,-276.92,0.00022997,2]
[310657961,1704637875218,-500.0,0.00022997,2]
[310657962,1704637875227,-500.0,0.00022997,2]
[310657963,1704637875237,-500.0,0.00022997,2]
[310657964,1704637875246,-161.76,0.00022997,2]
[310657965,1704637875255,-557.22707635,0.00022997,2]
[310657966,1704637875264,-500.0,0.00022998,2]
[310657967,1704637875273,-438.84,0.00022998,2]
[310657968,1704637875283,-500.0,0.00022998,2]
[310657969,1704637875292,-846.81,0.00022998,2]
[310657970,1704637875303,-500.0,0.00022998,2]
[310657971,1704637875313,-518.64,0.00022998,2]
[310657972,1704637875323,-500.0,0.00022998,2]
[310657973,1704637875332,-500.0,0.00022998,2]
[310657974,1704637875342,-464.78,0.00022998,2]
[310657975,1704637875351,-211.94,0.00022998,2]
[310657976,1704637875361,-500.0,0.00022998,2]
[310657977,1704637875371,-268.44,0.00022998,2]
[310657978,1704637875381,-500.0,0.00022998,2]
[310657979,1704637875390,-500.0,0.00022998,2]
[310657980,1704637875399,-298.01804505,0.00022998,2]
[310657981,1704637875409,-578.12,0.00022998,2]
[310657982,1704637875418,-191.26,0.00022998,2]
[310657983,1704637875428,-474.24,0.00022998,2]
[310657984,1704637875437,-362.08,0.00022998,2]
[310657985,1704637875447,-526.71627756,0.00022998,2]
[310657986,1704637875456,-500.0,0.00022998,2]
[310657987,1704637875465,-500.0,0.00022998,2]
[310657988,1704637875474,-500.0,0.00022998,2]
[310657989,1704637875484,-500.0,0.00022998,2]
[310657990,1704637875493,-500.0,0.00022998,2]
[310657991,1704637875503,-500.0,0.00022998,2]
[310657992,1704637875512,-505.25274787,0.00022998,2]
[310657993,1704637875522,-500.0,0.00022998,2]
[310657994,1704637875531,-500.0,0.00022998,2]
[310657995,1704637875540,-500.0,0.00022998,2]
[310657996,1704637875549,-500.0,0.00022998,2]
[310657997,1704637875560,-500.0,0.00022998,2]
[310657998,1704637875569,-500.0,0.00022998,2]
[310657999,1704637875578,-474.17740562,0.00022998,2]
[310658000,1704637875587,-602.80249,0.00022998,2]
[310658001,1704637875597,-500.0,0.00022998,2]
[310658002,1704637875606,-500.0,0.00022998,2]
[310658003,1704637875616,-500.0,0.00022998,2]
[310658004,1704637875625,-500.0,0.00022998,2]
[310658005,1704637875636,-500.0,0.00022998,2]
[310658006,1704637875645,-500.0,0.00022998,2]
[310658007,1704637875655,-500.0,0.00022998,2]
[310658008,1704637875664,-500.0,0.00022998,2]
[310658009,1704637875674,-500.0,0.00022998,2]
[310658010,1704637875683,-500.0,0.00022998,2]
[310658011,1704637875693,-500.0,0.00022998,2]
[310658012,1704637875702,-500.0,0.00022998,2]
[310658013,1704637875711,-500.0,0.00022998,2]
[310658014,1704637875721,-519.77786962,0.00022998,2]
[310658015,1704637875731,-500.0,0.00022998,2]
[310658016,1704637875740,-500.0,0.00022998,2]
[310658017,1704637875750,-349.2,0.00022998,2]
[310658018,1704637875760,-500.0,0.00022998,2]
[310658019,1704637875919,-500.0,0.00022998,2]
[310658020,1704637875929,-500.0,0.00022998,2]
[310658021,1704637875939,-500.0,0.00022998,2]
[310658022,1704637875949,-500.0,0.00022998,2]
[310658023,1704637875959,-500.0,0.00022998,2]
[310658024,1704637875971,-500.0,0.00022998,2]
[310658025,1704637875981,-500.0,0.00022998,2]
[310658026,1704637875990,-500.0,0.00022998,2]
[310658027,1704637875999,-500.0,0.00022998,2]
[310658028,1704637876010,-500.0,0.00022998,2]
[310658029,1704637876020,-500.0,0.00022998,2]
[310658030,1704637876030,-500.0,0.00022998,2]
[310658031,1704637876040,-500.0,0.00022998,2]
[310658032,1704637876050,-500.0,0.00022998,2]
[310658033,1704637876060,-500.0,0.00022998,2]
[310658034,1704637876069,-617.70668808,0.00022998,2]
[310658035,1704637876080,-500.0,0.00022998,2]
[310658036,1704637876089,-500.0,0.00022998,2]
[310658037,1704637876099,-500.0,0.00022998,2]
[310658038,1704637876108,-25000.0,0.00022999,2]
[310658039,1704637876117,-500.0,0.00022999,2]
[310658040,1704637876126,-500.0,0.00022999,2]
[310658041,1704637876136,-500.0,0.00022999,2]
[310658042,1704637876145,-500.0,0.00022999,2]
[310658043,1704637876154,-500.0,0.00022999,2]
[310658044,1704637876164,-220.62662265,0.00022999,2]
[310658045,1704637876174,-25000.0,0.00022999,2]
[310658046,1704637876184,-932.02592622,0.00023,2]
[310658047,1704637876194,-550.0,0.00023,3]
[310658048,1704637876204,-260.96,0.00023,2]
[310658049,1704637876213,-4000.0,0.00023,2]
[310658050,1704637876223,-602.34159924,0.00023288,4]
[310658051,1704637876232,-500.0,0.00023288,4]
[310658052,1704637876242,-150.13161464,0.00023288,4]
[310658053,1704637876251,-500.0,0.00023288,4]
[310658054,1704637876261,-483.72355021,0.00023288,4]
[310658055,1704637876270,-500.0,0.00023288,4]
[310658056,1704637876279,-500.0,0.00023288,4]
[310658057,1704637876288,-300.87023475,0.00023288,4]
[310658058,1704637876298,-500.0,0.00023288,4]
[310658059,1704637876308,-500.0,0.00023288,4]
[310658060,1704637876317,-500.0,0.00023288,4]
[310658061,1704637876327,-500.0,0.00023288,4]
[310658062,1704637876337,-173.54568626,0.00023288,4]
[310658063,1704637876346,-500.0,0.00023288,4]
[310658064,1704637876355,-500.0,0.00023288,4]
[310658065,1704637876365,-500.0,0.00023288,4]
[310658066,1704637876375,-500.0,0.00023288,4]
[310658067,1704637876384,-500.0,0.00023288,4]
[310658068,1704637876394,-500.0,0.00023288,4]
[310658069,1704637876405,-500.0,0.00023288,4]
[310658070,1704637876415,-500.0,0.00023288,4]
[310658071,1704637876426,-500.0,0.00023288,4]
[310658072,1704637876436,-500.0,0.00023288,4]
[310658073,1704637876445,-500.0,0.00023288,4]
[310658074,1704637876455,-500.0,0.00023288,4]
[310658075,1704637876464,-500.0,0.00023288,4]
[310658076,1704637876474,-500.0,0.00023288,2]
[310658077,1704637876484,-411.37469365,0.00023288,2]
[310658078,1704637876496,-409.75832067,0.00023288,2]
[310658079,1704637876506,-449.95143404,0.00023288,2]
[310658080,1704637876518,-220.34611162,0.00023288,2]
[310658081,1704637876527,-300.0,0.00023288,4]
[310658082,1704637876537,-500.0,0.00023288,4]
[310658083,1704637876548,-1381.06,0.00023299,2]
[310658084,1704637876558,-1381.06,0.00023299,2]
[310658085,1704637876567,-2115.91,0.00023299,2]
[310658086,1704637876578,-2115.91,0.00023299,2]
[310658087,1704637876588,-317.12,0.00023299,2]
[310658088,1704637876597,-1652.68,0.00023299,2]
[310658089,1704637876606,-1652.68,0.00023299,2]
[310658090,1704637876616,-917.97,0.00023299,2]
[310658091,1704637876626,-917.97,0.00023299,2]
[310658092,1704637876638,-198.13,0.00023299,2]
[310658093,1704637876648,-500.0,0.00023299,2]
[310658094,1704637876658,-341.72,0.00023299,2]
[310658095,1704637876668,-500.0,0.00023299,2]
[310658096,1704637876678,-500.0,0.00023299,2]
[310658097,1704637876688,-500.0,0.00023299,2]
[310658098,1704637876699,-500.0,0.00023299,2]
[310658099,1704637876709,-500.0,0.00023299,2]
[310658100,1704637876720,-500.0,0.00023299,2]
[310658101,1704637876730,-500.0,0.00023299,2]
[310658102,1704637876739,-582.33,0.00023299,2]
[310658103,1704637876750,-500.0,0.00023299,2]
[310658104,1704637876761,-500.0,0.00023299,2]
[310658105,1704637876770,-500.0,0.00023299,2]
[310658106,1704637876780,-500.0,0.00023299,2]
[310658107,1704637876790,-500.0,0.00023299,2]
[310658108,1704637876801,-500.0,0.00023299,2]
[310658109,1704637876811,-500.0,0.00023299,2]
[310658110,1704637876821,-352.26,0.00023299,2]
[310658111,1704637876830,-500.0,0.00023299,2]
[310658112,1704637876840,-396.05,0.00023299,2]
[310658113,1704637876850,-500.0,0.00023299,2]
[310658114,1704637876860,-500.0,0.00023299,2]
[310658115,1704637876870,-614.02,0.00023299,2]
[310658116,1704637876880,-500.0,0.00023299,2]
[310658117,1704637876890,-500.0,0.00023299,2]
[310658118,1704637876900,-500.0,0.00023299,2]
[310658119,1704637876909,-500.0,0.00023299,2]
[310658120,1704637876920,-500.0,0.00023299,2]
[310658121,1704637876930,-500.0,0.00023299,2]
[310658122,1704637876940,-500.0,0.00023299,2]
[310658123,1704637876950,-500.0,0.00023299,2]
[310658124,1704637876961,-500.0,0.00023299,2]
[310658125,1704637876972,-500.0,0.00023299,2]
[310658126,1704637876981,-500.0,0.00023299,2]
[310658127,1704637876991,-500.0,0.00023299,2]
[310658128,1704637877001,-607.17,0.00023299,2]
[310658129,1704637877011,-607.17,0.00023299,2]
[310658130,1704637877021,-500.0,0.00023299,2]
[310658131,1704637877031,-500.0,0.00023299,2]
[310658132,1704637877042,-500.0,0.00023299,2]
[310658133,1704637877053,-500.0,0.00023299,2]
[310658134,1704637877062,-500.0,0.00023299,2]
[310658135,1704637877071,-500.0,0.00023299,2]
[310658136,1704637877082,-500.0,0.00023299,2]
[310658137,1704637877092,-500.0,0.00023299,2]
[310658138,1704637877101,-1058.56,0.00023299,2]
[310658139,1704637877111,-1058.56,0.00023299,2]
[310658140,1704637877122,-500.0,0.00023299,2]
[310658141,1704637877134,-500.0,0.00023299,2]
[310658142,1704637877145,-500.0,0.00023299,2]
[310658143,1704637877154,-500.0,0.00023299,2]
[310658144,1704637877164,-500.0,0.00023299,2]
[310658145,1704637877174,-500.0,0.00023299,2]
[310658146,1704637877182,-667.45,0.00023299,2]
[310658147,1704637877192,-667.45,0.00023299,2]
[310658148,1704637877201,-543.32,0.00023299,2]
[310658149,1704637877211,-543.32,0.00023299,2]
[310658150,1704637877220,-500.0,0.00023299,2]
[310658151,1704637877230,-500.0,0.00023299,2]
[310658152,1704637877239,-500.0,0.00023299,2]
[310658153,1704637877249,-500.0,0.00023299,2]
[310658154,1704637877262,-500.0,0.00023299,2]
[310658155,1704637877273,-500.0,0.00023299,2]
[310658156,1704637877282,-627.29,0.00023299,2]
[310658157,1704637877295,-500.0,0.00023299,2]
[310658158,1704637877313,-627.29,0.00023299,2]
[310658159,1704637877323,-500.0,0.00023299,2]
[310658160,1704637877333,-402.25903488,0.00023299,2]
[310658161,1704637877342,-597.89,0.00023299,2]
[310658162,1704637877352,-500.0,0.00023299,2]
[310658163,1704637877363,-597.89,0.00023299,2]
[310658164,1704637877373,-500.0,0.00023299,2]
[310658165,1704637877385,-500.0,0.00023299,2]
[310658166,1704637877396,-500.0,0.00023299,2]
[310658167,1704637877408,-526.43,0.00023299,2]
[310658168,1704637877418,-526.43,0.00023299,2]
[310658169,1704637877428,-500.0,0.00023299,2]
[310658170,1704637877439,-500.0,0.00023299,2]
[310658171,1704637877449,-500.0,0.00023299,2]
[310658172,1704637877459,-500.0,0.00023299,2]
[310658173,1704637877470,-500.0,0.00023299,2]
[310658174,1704637877482,-500.0,0.00023299,2]
[310658175,1704637877492,-500.0,0.00023299,2]
[310658176,1704637877502,-500.0,0.00023299,2]
[310658177,1704637877512,-500.0,0.00023299,2]
[310658178,1704637877523,-322.26,0.00023299,2]
[310658179,1704637877533,-514.11,0.00023299,2]
[310658180,1704637877545,-514.11,0.00023299,2]
[310658181,1704637877555,-556.28158378,0.00023299,2]
[310658182,1704637877565,-500.0,0.00023299,2]
[310658183,1704637877574,-500.0,0.00023299,2]
[310658184,1704637877584,-500.0,0.00023299,2]
[310658185,1704637877593,-500.0,0.00023299,2]
[310658186,1704637877603,-500.0,0.00023299,2]
[310658187,1704637877613,-600.12,0.00023299,2]
[310658188,1704637877625,-931.43,0.00023299,2]
[310658189,1704637877635,-500.0,0.00023299,2]
[310658190,1704637877647,-931.43,0.00023299,2]
[310658191,1704637877656,-390.8,0.00023299,2]
[310658192,1704637877665,-500.0,0.00023299,2]
[310658193,1704637877675,-500.0,0.00023299,2]
[310658194,1704637877684,-500.0,0.00023299,2]
[310658195,1704637877694,-500.0,0.00023299,2]
[310658196,1704637877705,-500.0,0.00023299,2]
[310658197,1704637877715,-500.0,0.00023299,2]
[310658198,1704637877726,-500.0,0.00023299,2]
[310658199,1704637877735,-500.0,0.00023299,2]
[310658200,1704637877745,-500.0,0.00023299,2]
[310658201,1704637877756,-500.0,0.00023299,2]
[310658202,1704637877766,-500.0,0.00023299,2]
[310658203,1704637877777,-500.0,0.00023299,2]
[310658204,1704637877789,-500.0,0.00023299,2]
[310658205,1704637877799,-388.26088108,0.00023299,2]
[310658206,1704637877809,-500.0,0.00023299,2]
[310658207,1704637877819,-500.0,0.00023299,2]
[310658208,1704637877829,-500.0,0.00023299,2]
[310658209,1704637877839,-500.0,0.00023299,2]
[310658210,1704637877850,-500.0,0.00023299,2]
[310658211,1704637877860,-500.0,0.00023299,2]
[310658212,1704637877870,-500.0,0.00023299,2]
[310658213,1704637877880,-507.85468848,0.00023299,2]
[310658214,1704637877890,-504.77,0.00023299,2]
[310658215,1704637877900,-504.77,0.00023299,2]
[310658216,1704637877909,-500.0,0.00023299,2]
[310658217,1704637877919,-500.0,0.00023299,2]
[310658218,1704637877929,-500.0,0.00023299,2]
[310658219,1704637877938,-500.0,0.00023299,2]
[310658220,1704637877948,-629.76,0.00023299,2]
[310658221,1704637877958,-629.76,0.00023299,2]
[310658222,1704637877967,-500.0,0.00023299,2]
[310658223,1704637877977,-500.0,0.00023299,2]
[310658224,1704637877987,-525.86,0.00023299,2]
[310658225,1704637877997,-525.86,0.00023299,2]
[310658226,1704637878007,-500.0,0.00023299,2]
[310658227,1704637878017,-500.0,0.00023299,2]
[310658228,1704637878026,-500.0,0.00023299,2]
[310658229,1704637878036,-500.0,0.00023299,2]
[310658230,1704637878045,-500.0,0.00023299,2]
[310658231,1704637878054,-23474.0,0.000233,2]
[310658232,1704637878064,-1771.30019938,0.00023596,2]
[310658233,1704637878074,-400.96,0.00023615,2]
[310658234,1704637878083,-158.55,0.0002383,2]
[310658235,1704637878093,-400.86,0.00023967,2]
[310658236,1704637878102,-430.5164237,0.00024,2]
[310658237,1704637878111,-299.02676355,0.00024,2]
[310658238,1704637878121,-201.11715598,0.00024,2]
[310658239,1704637878130,-216.84,0.00024104,2]
[310658240,1704637878140,-177.65,0.00024283,2]
[310658241,1704637878151,-167.0,0.00024301,2]
[310658242,1704637878162,-1416.48,0.00024386,2]
[310658243,1704637878171,-280.72,0.00024452,2]
[310658244,1704637878182,-400.96,0.00024594,2]
[310658245,1704637878192,-250.0,0.00024658,2]
[310658246,1704637878201,-1771.30019938,0.00024722,2]
[310658247,1704637878212,-13769.67,0.0002498,2]
[310658248,1704637878223,-155.0,0.00025,2]
[310658249,1704637878232,-3034.08810881,0.00025,2]
[310658250,1704637878243,-302.71173098,0.00025,2]
[310658251,1704637878252,-166.9760429,0.00025,2]
[310658252,1704637878261,-155.0,0.00025,2]
[310658253,1704637878272,-965.97772008,0.00025,2]